fUST/lending_fUST_20240825
["ID","MTS","AMOUNT","RATE_DAILY","PERIOD"]
[335841304,1724526643717,-1409.66,0.00013698,2]
[335841305,1724526643727,-500.0,0.00013698,2]
[335841306,1724526643736,-500.0,0.00013698,2]
[335841307,1724526643746,-500.0,0.00013698,2]
[335841308,1724526643755,-500.0,0.00013698,2]
[335841309,1724526643764,-500.0,0.00013698,2]
[335841310,1724526643774,-500.0,0.00013698,2]
[335841311,1724526643783,-780.67,0.00013698,2]
[335841312,1724526643793,-1347.74,0.00013698,2]
[335841313,1724526643803,-1157.83,0.00013698,2]
[335841314,1724526643813,-500.0,0.00013698,2]
[335841315,1724526643822,-828.16,0.00013698,2]
[335841316,1724526643831,-510.76,0.00013698,2]
[335841317,1724526643839,-500.0,0.00013698,2]
[335841318,1724526643849,-500.0,0.00013698,2]
[335841319,1724526643859,-500.0,0.00013698,2]
[335841320,1724526643868,-500.0,0.00013698,2]
[335841321,1724526643878,-500.0,0.00013698,2]
[335841322,1724526643887,-500.0,0.00013698,2]
[335841323,1724526643897,-500.0,0.00013698,2]
[335841324,1724526643907,-549.71,0.00013698,2]
[335841325,1724526643916,-500.0,0.00013698,2]
[335841326,1724526643926,-500.0,0.00013698,2]
[335841327,1724526643935,-1361.11,0.00013698,2]
[335841328,1724526643944,-934.98,0.00013698,2]
[335841329,1724526643954,-500.0,0.00013698,2]
[335841330,1724526643965,-500.0,0.00013698,2]
[335841331,1724526643975,-500.0,0.00013698,2]
[335841332,1724526643984,-500.0,0.00013698,2]
[335841333,1724526643994,-500.0,0.00013698,2]
[335841334,1724526644003,-698.64,0.00013698,2]
[335841335,1724526644013,-500.0,0.00013698,2]
[335841336,1724526644022,-601.84,0.00013698,2]
[335841337,1724526644031,-500.0,0.00013698,2]
[335841338,1724526644040,-500.0,0.00013698,2]
[335841339,1724526644050,-1730.21,0.00013698,2]
[335841340,1724526644059,-737.25,0.00013698,2]
[335841341,1724526644068,-500.0,0.00013698,2]
[335841342,1724526644078,-500.0,0.00013698,2]
[335841343,1724526644087,-500.0,0.00013698,2]
[335841344,1724526644096,-484.99131831,0.00013698,2]
[335841345,1724526644105,-500.0,0.00013698,2]
[335841346,1724526644114,-677.42,0.00013698,2]
[335841347,1724526644123,-500.0,0.00013698,2]
[335841348,1724526644132,-500.0,0.00013698,2]
[335841349,1724526644141,-500.0,0.00013698,2]
[335841350,1724526644150,-500.0,0.00013698,2]
[335841351,1724526644161,-500.0,0.00013698,2]
[335841352,1724526644170,-500.0,0.00013698,2]
[335841353,1724526644180,-967.15,0.00013698,2]
[335841354,1724526644189,-500.0,0.00013698,2]
[335841355,1724526644198,-500.24198974,0.00013698,2]
[335841356,1724526644208,-500.0,0.00013698,2]
[335841357,1724526644223,-1135.58,0.00013698,2]
[335841358,1724526644233,-500.0,0.00013698,2]
[335841359,1724526644244,-727.51,0.00013698,2]
[335841360,1724526644256,-500.0,0.00013698,2]
[335841361,1724526644266,-500.0,0.00013698,2]
[335841362,1724526644426,-643.7,0.00013698,2]
[335841363,1724526644461,-557.51,0.00013698,2]
[335841364,1724526644477,-500.0,0.00013698,2]
[335841365,1724526644487,-500.0,0.00013698,2]
[335841366,1724526644497,-500.0,0.00013698,2]
[335841367,1724526644506,-500.0,0.00013698,2]
[335841368,1724526644516,-500.0,0.00013698,2]
[335841369,1724526644526,-500.0,0.00013698,2]
[335841370,1724526644535,-500.0,0.00013698,2]
[335841371,1724526644548,-998.06,0.00013698,2]
[335841372,1724526644558,-607.84,0.00013698,2]
[335841373,1724526644568,-500.0,0.00013698,2]
[335841374,1724526644578,-500.0,0.00013698,2]
[335841375,1724526644589,-500.0,0.00013698,2]
[335841376,1724526644599,-500.0,0.00013698,2]
[335841377,1724526644609,-781.98,0.00013698,2]
[335841378,1724526644618,-500.0,0.00013698,2]
[335841379,1724526644631,-711.95,0.00013698,2]
[335841380,1724526644640,-500.0,0.00013698,2]
[335841381,1724526644650,-553.87,0.00013698,2]
[335841382,1724526644660,-594.73,0.00013698,2]
[335841383,1724526644670,-500.0,0.00013698,2]
[335841384,1724526644680,-815.61,0.00013698,2]
[335841385,1724526644689,-500.0,0.00013698,2]
[335841386,1724526644699,-1187.82,0.00013698,2]
[335841387,1724526644709,-666.89,0.00013698,2]
[335841388,1724526644730,-984.89,0.00013698,2]
[335841389,1724526644739,-500.0,0.00013698,2]
[335841390,1724526644749,-2062.88,0.00013698,2]
[335841391,1724526644758,-575.95,0.00013698,2]
[335841392,1724526644767,-1189.34,0.00013698,2]
[335841393,1724526644777,-1233.15,0.00013698,2]
[335841394,1724526644787,-1132.62,0.00013698,2]
[335841395,1724526644796,-500.0,0.00013698,2]
[335841396,1724526644805,-510.76513721,0.00013698,2]
[335841397,1724526644815,-564.57,0.00013698,2]
[335841398,1724526644825,-500.0,0.00013698,2]
[335841399,1724526644834,-794.79,0.00013698,2]
[335841400,1724526644843,-1421.55,0.00013698,2]
[335841401,1724526644852,-500.0,0.00013698,2]
[335841402,1724526644862,-500.0,0.00013698,2]
[335841403,1724526644872,-500.0,0.00013698,2]
[335841404,1724526644882,-500.0,0.00013698,2]
[335841405,1724526644892,-1703.02,0.00013698,2]
[335841406,1724526644903,-857.13,0.00013698,2]
[335841407,1724526644913,-746.68,0.00013698,2]
[335841408,1724526644922,-500.0,0.00013698,2]
[335841409,1724526644932,-1107.02,0.00013698,2]
[335841410,1724526644942,-500.0,0.00013698,2]
[335841411,1724526644952,-1000.0,0.00013698,2]
[335841412,1724526644962,-537.94521143,0.00013698,2]
[335841413,1724526644975,-885.76,0.00013698,2]
[335841414,1724526644985,-500.0,0.00013698,2]
[335841415,1724526644994,-500.0,0.00013698,2]
[335841416,1724526645005,-513.0423722,0.00013698,2]
[335841417,1724526645015,-500.0,0.00013698,2]
[335841418,1724526645025,-1654.57,0.00013698,2]
[335841419,1724526645035,-503.31442808,0.00013698,2]
[335841420,1724526645045,-500.0,0.00013698,2]
[335841421,1724526645055,-500.0,0.00013698,2]
[335841422,1724526645065,-2073.91,0.00013698,2]
[335841423,1724526645075,-500.0,0.00013698,2]
[335841424,1724526645084,-1998.96,0.00013698,2]
[335841425,1724526645094,-500.0,0.00013698,2]
[335841426,1724526645103,-500.0,0.00013698,2]
[335841427,1724526645113,-500.0,0.00013698,2]
[335841428,1724526645123,-1362.21,0.00013698,2]
[335841429,1724526645133,-731.43,0.00013698,2]
[335841430,1724526645144,-502.71665386,0.00013698,2]
[335841431,1724526645153,-1318.45,0.00013698,2]
[335841432,1724526645163,-500.0,0.00013698,2]
[335841433,1724526645173,-500.0,0.00013698,2]
[335841434,1724526645183,-500.0,0.00013698,2]
[335841435,1724526645192,-500.0,0.00013698,2]
[335841436,1724526645202,-521.87,0.00013698,2]
[335841437,1724526645211,-674.42,0.00013698,2]
[335841438,1724526645225,-1938.26,0.00013698,2]
[335841439,1724526645234,-500.0,0.00013698,2]
[335841440,1724526645243,-6633.17,0.00013698,2]
[335841441,1724526645253,-3270.23,0.00013698,2]
[335841442,1724526645263,-500.0,0.00013698,2]
[335841443,1724526645272,-5386.28,0.00013698,2]
[335841444,1724526645281,-500.0,0.00013698,2]
[335841445,1724526645291,-1309.44,0.00013698,2]
[335841446,1724526645301,-500.0,0.00013698,2]
[335841447,1724526645311,-500.0,0.00013698,2]
[335841448,1724526645321,-500.0,0.00013698,2]
[335841449,1724526645331,-1119.73,0.00013698,2]
[335841450,1724526645340,-500.0,0.00013698,2]
[335841451,1724526645349,-500.0,0.00013698,2]
[335841452,1724526645359,-500.0,0.00013698,2]
[335841453,1724526645369,-298.95432508,0.00013698,2]
[335841454,1724526645378,-940.6,0.00013698,2]
[335841455,1724526645387,-3191.55,0.00013698,2]
[335841456,1724526645398,-548.26085861,0.00013698,2]
[335841457,1724526645408,-903.54,0.00013698,2]
[335841458,1724526645419,-3215.16,0.00013698,2]
[335841459,1724526645429,-716.15,0.00013698,2]
[335841460,1724526645438,-500.0,0.00013698,2]
[335841461,1724526645448,-505.88122665,0.00013698,2]
[335841462,1724526645458,-500.0,0.00013698,2]
[335841463,1724526645474,-500.0,0.00013698,2]
[335841464,1724526645483,-607.86146822,0.00013698,2]
[335841465,1724526645494,-8200.29,0.00013698,2]
[335841466,1724526645504,-500.0,0.00013698,2]
[335841467,1724526645514,-500.0,0.00013698,2]
[335841468,1724526645523,-1684.5,0.00013698,2]
[335841469,1724526645532,-500.0,0.00013698,2]
[335841470,1724526645545,-2196.01,0.00013698,2]
[335841471,1724526645559,-923.43,0.00013698,2]
[335841472,1724526645570,-500.0,0.00013698,2]
[335841473,1724526645581,-325.96166249,0.00013698,2]
[335841474,1724526645591,-770.87,0.00013698,2]
[335841475,1724526645601,-903.49,0.00013698,2]
[335841476,1724526645611,-618.42115993,0.00013698,2]
[335841477,1724526645621,-640.01,0.00013698,2]
[335841478,1724526645631,-500.0,0.00013698,2]
[335841479,1724526645640,-500.0,0.00013698,2]
[335841480,1724526645649,-1275.7,0.00013698,2]
[335841481,1724526645659,-795.6,0.00013698,2]
[335841482,1724526645669,-500.0,0.00013698,2]
[335841483,1724526645679,-500.0,0.00013698,2]
[335841484,1724526645689,-500.0,0.00013698,2]
[335841485,1724526645698,-2613.14,0.00013698,2]
[335841486,1724526645708,-11182.04,0.00013698,2]
[335841487,1724526645722,-703.73,0.00013698,2]
[335841488,1724526645732,-500.0,0.00013698,2]
[335841489,1724526645742,-3485.97,0.00013698,2]
[335841490,1724526645752,-500.0,0.00013698,2]
[335841491,1724526645763,-659.83,0.00013698,2]
[335841492,1724526645773,-500.0,0.00013698,2]
[335841493,1724526645782,-500.0,0.00013698,2]
[335841494,1724526645792,-500.0,0.00013698,2]
[335841495,1724526645801,-1862.71,0.00013698,2]
[335841496,1724526645811,-500.0,0.00013698,2]
[335841497,1724526645822,-5370.01,0.00013698,2]
[335841499,1724526645832,-500.0,0.00013698,2]
[335841501,1724526645841,-500.0,0.00013698,2]
[335841502,1724526645851,-500.58563894,0.00013698,2]
[335841504,1724526645862,-500.0,0.00013698,2]
[335841506,1724526645871,-8131.13,0.00013698,2]
[335841508,1724526645881,-500.0,0.00013698,2]
[335841510,1724526645891,-500.0,0.00013698,2]
[335841512,1724526645901,-500.0,0.00013698,2]
[335841514,1724526645910,-837.27,0.00013698,2]
[335841515,1724526645920,-500.0,0.00013698,2]
[335841517,1724526645929,-796.37,0.00013698,2]
[335841519,1724526645938,-500.0,0.00013698,2]
[335841520,1724526645947,-500.0,0.00013698,2]
[335841521,1724526645956,-1350.87,0.00013698,2]
[335841523,1724526645968,-202.277176,0.00013698,2]
[335841525,1724526645978,-202.277176,0.00013698,2]
[335841527,1724526645987,-202.277176,0.00013698,2]
[335841528,1724526645997,-202.277176,0.00013698,2]
[335841530,1724526646007,-202.277176,0.00013698,2]
[335841532,1724526646017,-500.0,0.00013698,2]
[335841534,1724526646027,-1005.4,0.00013698,2]
[335841536,1724526646037,-2327.31,0.00013698,2]
[335841538,1724526646047,-451.24341597,0.00013698,2]
[335841539,1724526646056,-202.277176,0.00013698,2]
[335841541,1724526646065,-2951.8,0.00013698,2]
[335841543,1724526646075,-202.277176,0.00013698,2]
[335841545,1724526646086,-500.0,0.00013698,2]
[335841546,1724526646095,-220.32718634,0.00013698,2]
[335841548,1724526646106,-202.277176,0.00013698,2]
[335841550,1724526646115,-1071.81,0.00013698,2]
[335841552,1724526646125,-202.277176,0.00013698,2]
[335841553,1724526646135,-202.277176,0.00013698,2]
[335841554,1724526646145,-500.0,0.00013698,2]
[335841555,1724526646154,-502.22111403,0.00013698,2]
[335841556,1724526646164,-500.0,0.00013698,2]
[335841557,1724526646174,-500.0,0.00013698,2]
[335841558,1724526646184,-787.39,0.00013698,2]
[335841559,1724526646194,-520.17,0.00013698,2]
[335841560,1724526646204,-3044.18,0.00013698,2]
[335841561,1724526646216,-616.74,0.00013698,2]
[335841562,1724526646226,-514.15,0.00013698,2]
[335841563,1724526646235,-23010.55,0.00013698,2]
[335841564,1724526646245,-689.6,0.00013698,2]
[335841565,1724526646255,-1348.64,0.00013698,2]
[335841566,1724526646265,-859.67,0.00013698,2]
[335841567,1724526646275,-3010.38,0.00013698,2]
[335841568,1724526646285,-721.66,0.00013698,2]
[335841569,1724526646295,-416.69687738,0.00013698,2]
[335841570,1724526646304,-2830.03,0.00013698,2]
[335841571,1724526646314,-4250.9,0.00013698,2]
[335841572,1724526646325,-500.0,0.00013698,2]
[335841573,1724526646335,-500.0,0.00013698,2]
[335841574,1724526646344,-1919.5,0.00013698,2]
[335841575,1724526646355,-500.0,0.00013698,2]
[335841576,1724526646365,-500.0,0.00013698,2]
[335841577,1724526646375,-1010.88,0.00013698,2]
[335841578,1724526646384,-513.5,0.00013698,2]
[335841580,1724526646394,-500.0,0.00013698,2]
[335841582,1724526646404,-1716.1,0.00013698,2]
[335841584,1724526646414,-5473.16,0.00013698,2]
[335841585,1724526646425,-3080.52,0.00013698,2]
[335841586,1724526646435,-500.0,0.00013698,2]
[335841587,1724526646445,-9585.6,0.00013698,2]
[335841588,1724526646455,-1033.8,0.00013698,2]
[335841589,1724526646465,-760.45,0.00013698,2]
[335841590,1724526646475,-500.0,0.00013698,2]
[335841591,1724526646486,-506.2,0.00013698,2]
[335841592,1724526646496,-500.0,0.00013698,2]
[335841593,1724526646506,-500.0,0.00013698,2]
[335841594,1724526646516,-516.54,0.00013698,2]
[335841595,1724526646526,-798.6,0.00013698,2]
[335841596,1724526646536,-500.0,0.00013698,2]
[335841597,1724526646549,-655.15,0.00013698,2]
[335841598,1724526646560,-500.0,0.00013698,2]
[335841599,1724526646570,-572.68,0.00013698,2]
[335841600,1724526646580,-1468.02,0.00013698,2]
[335841601,1724526646591,-859.5,0.00013698,2]
[335841602,1724526646602,-500.0,0.00013698,2]
[335841603,1724526646611,-1489.3,0.00013698,2]
[335841604,1724526646622,-500.0,0.00013698,2]
[335841605,1724526646632,-500.0,0.00013698,2]
[335841606,1724526646643,-1254.88,0.00013698,2]
[335841607,1724526646652,-500.0,0.00013698,2]
[335841608,1724526646662,-1235.18,0.00013698,2]
[335841609,1724526646672,-840.16,0.00013698,2]
[335841610,1724526646682,-500.0,0.00013698,2]
[335841611,1724526646693,-1782.38,0.00013698,2]
[335841612,1724526646704,-500.0,0.00013698,2]
[335841613,1724526646714,-500.0,0.00013698,2]
[335841614,1724526646724,-1179.05,0.00013698,2]
[335841615,1724526646734,-14474.9,0.00013698,2]
[335841616,1724526646744,-2781.03,0.00013698,2]
[335841617,1724526646754,-1816.56,0.00013698,2]
[335841618,1724526646764,-648.57,0.00013698,2]
[335841619,1724526646774,-527.63769833,0.00013698,2]
[335841620,1724526646783,-500.0,0.00013698,2]
[335841621,1724526646793,-500.0,0.00013698,2]
[335841622,1724526646803,-500.0,0.00013698,2]
[335841623,1724526646813,-1906.01,0.00013698,2]
[335841624,1724526646822,-500.0,0.00013698,2]
[335841625,1724526646832,-4888.88,0.00013698,2]
[335841626,1724526646892,-500.0,0.00013698,2]
[335841627,1724526646902,-886.23,0.00013698,2]
[335841628,1724526646911,-2308.62,0.00013698,2]
[335841629,1724526646921,-703.18,0.00013698,2]
[335841630,1724526646930,-849.55,0.00013698,2]
[335841631,1724526646940,-500.0,0.00013698,2]
[335841632,1724526646951,-641.92,0.00013698,2]
[335841633,1724526646961,-2311.41,0.00013698,2]
[335841634,1724526646971,-500.0,0.00013698,2]
[335841635,1724526646980,-2289.18,0.00013698,2]
[335841636,1724526646990,-500.0,0.00013698,2]
[335841637,1724526646999,-500.0,0.00013698,2]
[335841638,1724526647008,-2364.16,0.00013698,2]
[335841639,1724526647018,-500.0,0.00013698,2]
[335841640,1724526647027,-3522.53,0.00013698,2]
[335841641,1724526647036,-500.0,0.00013698,2]
[335841642,1724526647045,-500.0,0.00013698,2]
[335841643,1724526647055,-500.0,0.00013698,2]
[335841644,1724526647064,-1286.05,0.00013698,2]
[335841645,1724526647074,-500.0,0.00013698,2]
[335841646,1724526647084,-1788.32,0.00013698,2]
[335841647,1724526647095,-500.0,0.00013698,2]
[335841648,1724526647106,-744.3,0.00013698,2]
[335841649,1724526647119,-500.0,0.00013698,2]
[335841650,1724526647130,-500.0,0.00013698,2]
[335841651,1724526647142,-464.28113837,0.00013698,2]
[335841652,1724526647152,-7274.21,0.00013698,2]
[335841653,1724526647163,-1010.89,0.00013698,2]
[335841654,1724526647172,-500.0,0.00013698,2]
[335841655,1724526647182,-1599.73,0.00013698,2]
[335841656,1724526647191,-839.79,0.00013698,2]
[335841657,1724526647201,-500.0,0.00013698,2]
[335841658,1724526647211,-500.0,0.00013698,2]
[335841659,1724526647220,-530.8257121,0.00013698,2]
[335841660,1724526647230,-500.0,0.00013698,2]
[335841661,1724526647239,-2668.64,0.00013698,2]
[335841662,1724526647248,-10265.66,0.00013698,2]
[335841663,1724526647258,-4615.96955284,0.00013698,2]
[335841664,1724526647751,-16943.88044716,0.00013698,2]
[335841665,1724526647761,-500.0,0.00013698,2]
[335841666,1724526647770,-1126.38,0.00013698,2]
[335841667,1724526647780,-500.0,0.00013698,2]
[335841668,1724526647790,-548.84,0.00013698,2]
[335841669,1724526647799,-3153.34,0.00013698,2]
[335841670,1724526647809,-500.0,0.00013698,2]
[335841671,1724526647818,-500.0,0.00013698,2]
[335841672,1724526647828,-12196.99,0.00013698,2]
[335841673,1724526647838,-500.0,0.00013698,2]
[335841674,1724526647847,-1314.08,0.00013698,2]
[335841675,1724526647857,-500.0,0.00013698,2]
[335841676,1724526647868,-500.0,0.00013698,2]
[335841677,1724526647878,-1123.39,0.00013698,2]
[335841678,1724526647887,-4503.51,0.00013698,2]
[335841679,1724526647896,-1932.4,0.00013698,2]
[335841680,1724526647906,-845.14,0.00013698,2]
[335841681,1724526647915,-2034.65,0.00013698,2]
[335841682,1724526647925,-500.0,0.00013698,2]
[335841683,1724526647935,-500.0,0.00013698,2]
[335841684,1724526647944,-500.0,0.00013698,2]
[335841685,1724526647954,-500.0,0.00013698,2]
[335841686,1724526647964,-669.76,0.00013698,2]
[335841687,1724526647974,-2169.87,0.00013698,2]
[335841688,1724526647984,-500.0,0.00013698,2]
[335841689,1724526647994,-12632.65,0.00013698,2]
[335841690,1724526648003,-719.35,0.00013698,2]
[335841691,1724526648013,-500.0,0.00013698,2]
[335841692,1724526648023,-798.59,0.00013698,2]
[335841693,1724526648033,-611.07,0.00013698,2]
[335841694,1724526648043,-155.21389728,0.00013698,2]
[335841695,1724526648054,-500.0,0.00013698,2]
[335841696,1724526648064,-789.5,0.00013698,2]
[335841697,1724526648074,-500.0,0.00013698,2]
[335841698,1724526648084,-151.0,0.00013699,2]
[335841699,1724526648093,-173.857068,0.00013699,2]
[335841700,1724526648103,-151.0,0.00013699,2]
[335841701,1724526648113,-151.0,0.00013699,2]
[335841702,1724526648122,-151.0,0.00013699,2]
[335841703,1724526648133,-151.0,0.00013699,2]
[335841704,1724526648142,-151.0,0.00013699,2]
[335841705,1724526648152,-151.0,0.00013699,2]
[335841706,1724526648162,-151.0,0.00013699,2]
[335841707,1724526648171,-151.0,0.00013699,2]
[335841708,1724526648181,-151.0,0.00013699,2]
[335841709,1724526648191,-151.0,0.00013699,2]
[335841710,1724526648201,-163.415044,0.00013699,2]
[335841711,1724526648210,-2015.263867,0.00013699,2]
[335841712,1724526648220,-151.0,0.00013699,2]
[335841713,1724526648229,-151.0,0.00013699,2]
[335841714,1724526648240,-151.0,0.00013699,2]
[335841715,1724526648250,-151.0,0.00013699,2]
[335841716,1724526648260,-151.0,0.00013699,2]
[335841717,1724526648270,-151.0,0.00013699,2]
[335841718,1724526648280,-151.0,0.00013699,2]
[335841719,1724526648290,-151.0,0.00013699,2]
[335841720,1724526648299,-151.0,0.00013699,2]
[335841721,1724526648309,-151.0,0.00013699,2]
[335841722,1724526648319,-151.0,0.00013699,2]
[335841723,1724526648328,-151.0,0.00013699,2]
[335841724,1724526648339,-151.0,0.00013699,2]
[335841725,1724526648351,-151.0,0.00013699,2]
[335841726,1724526648360,-151.0,0.00013699,2]
[335841727,1724526648370,-151.0,0.00013699,2]
[335841728,1724526648380,-151.0,0.00013699,2]
[335841729,1724526648390,-151.0,0.00013699,2]
[335841730,1724526648399,-151.0,0.00013699,2]
[335841731,1724526648409,-151.0,0.00013699,2]
[335841732,1724526648418,-151.0,0.00013699,2]
[335841733,1724526648429,-151.0,0.00013699,2]
[335841734,1724526648440,-151.0,0.00013699,2]
[335841735,1724526648450,-151.0,0.00013699,2]
[335841736,1724526648460,-151.0,0.00013699,2]
[335841737,1724526648470,-283.866611,0.00013699,2]
[335841738,1724526648480,-851.1673,0.00013699,2]
[335841739,1724526648490,-851.1673,0.00013699,2]
[335841740,1724526648499,-851.1673,0.00013699,2]
[335841741,1724526648509,-851.1673,0.00013699,2]
[335841742,1724526648519,-851.1673,0.00013699,2]
[335841743,1724526648528,-851.1673,0.00013699,2]
[335841744,1724526648537,-851.1673,0.00013699,2]
[335841745,1724526648551,-851.1673,0.00013699,2]
[335841746,1724526648561,-851.1673,0.00013699,2]
[335841747,1724526648571,-851.1673,0.00013699,2]
[335841748,1724526648581,-300.365118,0.00013699,2]
[335841749,1724526648591,-300.365118,0.00013699,2]
[335841750,1724526648601,-300.365118,0.00013699,2]
[335841751,1724526648611,-300.365118,0.00013699,2]
[335841752,1724526648622,-300.365118,0.00013699,2]
[335841753,1724526648633,-300.365118,0.00013699,2]
[335841754,1724526648645,-300.365118,0.00013699,2]
[335841755,1724526648655,-300.365118,0.00013699,2]
[335841756,1724526648665,-300.365118,0.00013699,2]
[335841757,1724526648675,-300.365118,0.00013699,2]
[335841758,1724526648686,-151.0,0.00013699,2]
[335841759,1724526648695,-151.0,0.00013699,2]
[335841760,1724526648705,-151.0,0.00013699,2]
[335841761,1724526648716,-151.0,0.00013699,2]
[335841762,1724526648726,-151.0,0.00013699,2]
[335841763,1724526648736,-151.0,0.00013699,2]
[335841764,1724526648746,-151.0,0.00013699,2]
[335841765,1724526648756,-151.0,0.00013699,2]
[335841766,1724526648766,-151.0,0.00013699,2]
[335841767,1724526648776,-151.0,0.00013699,2]
[335841768,1724526648786,-151.0,0.00013699,2]
[335841769,1724526648795,-151.0,0.00013699,2]
[335841770,1724526648805,-239.091766,0.00013699,2]
[335841771,1724526648815,-550.762549,0.00013699,2]
[335841772,1724526648824,-550.762549,0.00013699,2]
[335841773,1724526648834,-550.762549,0.00013699,2]
[335841774,1724526648843,-550.762549,0.00013699,2]
[335841775,1724526648853,-550.762549,0.00013699,2]
[335841776,1724526648863,-550.762549,0.00013699,2]
[335841777,1724526648872,-550.762549,0.00013699,2]
[335841778,1724526648882,-550.762549,0.00013699,2]
[335841779,1724526648893,-151.0,0.00013699,2]
[335841780,1724526648905,-151.0,0.00013699,2]
[335841781,1724526648915,-151.0,0.00013699,2]
[335841782,1724526648927,-151.0,0.00013699,2]
[335841783,1724526648937,-151.0,0.00013699,2]
[335841784,1724526648947,-295.763672,0.00013699,2]
[335841785,1724526648957,-454.299579,0.00013699,2]
[335841786,1724526648966,-454.299579,0.00013699,2]
[335841787,1724526648976,-454.299579,0.00013699,2]
[335841788,1724526648986,-454.299579,0.00013699,2]
[335841789,1724526648996,-454.299579,0.00013699,2]
[335841790,1724526649005,-151.0,0.00013699,2]
[335841791,1724526649015,-454.299579,0.00013699,2]
[335841792,1724526649025,-454.299579,0.00013699,2]
[335841793,1724526649034,-454.299579,0.00013699,2]
[335841794,1724526649043,-454.299579,0.00013699,2]
[335841795,1724526649053,-454.299579,0.00013699,2]
[335841796,1724526649063,-382.790347,0.00013699,2]
[335841797,1724526649072,-382.790347,0.00013699,2]
[335841798,1724526649082,-382.790347,0.00013699,2]
[335841799,1724526649092,-151.876821,0.00013699,2]
[335841800,1724526649102,-382.790347,0.00013699,2]
[335841801,1724526649112,-382.790347,0.00013699,2]
[335841802,1724526649122,-382.790347,0.00013699,2]
[335841803,1724526649132,-382.790347,0.00013699,2]
[335841804,1724526649142,-382.790347,0.00013699,2]
[335841805,1724526649152,-382.790347,0.00013699,2]
[335841806,1724526649162,-382.790347,0.00013699,2]
[335841807,1724526649172,-151.0,0.00013699,2]
[335841808,1724526649183,-151.0,0.00013699,2]
[335841809,1724526649194,-151.0,0.00013699,2]
[335841810,1724526649204,-251.070532,0.00013699,2]
[335841811,1724526649215,-151.0,0.00013699,2]
[335841812,1724526649225,-151.0,0.00013699,2]
[335841813,1724526649235,-151.0,0.00013699,2]
[335841814,1724526649245,-297.883701,0.00013699,2]
[335841815,1724526649254,-151.0,0.00013699,2]
[335841816,1724526649264,-151.0,0.00013699,2]
[335841817,1724526649274,-151.0,0.00013699,2]
[335841818,1724526649283,-151.0,0.00013699,2]
[335841819,1724526649293,-151.0,0.00013699,2]
[335841820,1724526649303,-235.893729,0.00013699,2]
[335841821,1724526649313,-388.366918,0.00013699,2]
[335841822,1724526649323,-388.366918,0.00013699,2]
[335841823,1724526649332,-388.366918,0.00013699,2]
[335841824,1724526649342,-388.366918,0.00013699,2]
[335841825,1724526649352,-388.366918,0.00013699,2]
[335841826,1724526649362,-388.366918,0.00013699,2]
[335841827,1724526649371,-3000.0,0.00013699,2]
[335841828,1724526649381,-192.803506,0.00013699,2]
[335841829,1724526649391,-192.803506,0.00013699,2]
[335841830,1724526649401,-192.803506,0.00013699,2]